[Event "Late-Titled-Tuesday-Blitz-March-26-2024"]
[Site "Chess.com"]
[Date "2024.03.26"]
[Round "9"]
[White "giomar27"]
[Black "Revan_2002"]
[Result "0-1"]
[WhiteElo "2462"]
[BlackElo "2660"]
[TimeControl "180+1"]
[EndTime "15:44:27 PDT"]
[Termination "Revan_2002 won by resignation"]

1. Nc3 {[%clk 0:03:00.9]} 1... g6 {[%clk 0:02:59.1]} 2. d4 {[%clk 0:03:00.5]}
2... Bg7 {[%clk 0:02:59.2]} 3. Bf4 {[%clk 0:03:01.1]} 3... d6 {[%clk 0:02:59.2]}
4. Qd2 {[%clk 0:03:01.2]} 4... c6 {[%clk 0:02:59.3]} 5. O-O-O {[%clk 0:03:00.3]}
5... Nd7 {[%clk 0:02:59.7]} 6. h4 {[%clk 0:03:00.4]} 6... h5 {[%clk 0:02:57.7]}
7. Nf3 {[%clk 0:02:59.3]} 7... b5 {[%clk 0:02:57.3]} 8. e3 {[%clk 0:02:49.6]}
8... Qa5 {[%clk 0:02:51.8]} 9. Kb1 {[%clk 0:02:49.4]} 9... Nb6 {[%clk
0:02:51.8]} 10. Ne4 {[%clk 0:02:19.6]} 10... Qxd2 {[%clk 0:02:40.6]} 11. Nfxd2
{[%clk 0:02:19.5]} 11... Bf5 {[%clk 0:02:35.9]} 12. Ng3 {[%clk 0:02:17.4]} 12...
Be6 {[%clk 0:02:33.9]} 13. b3 {[%clk 0:02:15.5]} 13... Nf6 {[%clk 0:02:33.5]}
14. c4 {[%clk 0:02:14.8]} 14... bxc4 {[%clk 0:02:32.1]} 15. Nxc4 {[%clk
0:02:11.4]} 15... Nxc4 {[%clk 0:02:31.7]} 16. Bxc4 {[%clk 0:02:10.4]} 16... Bxc4
{[%clk 0:02:30.9]} 17. bxc4 {[%clk 0:02:10.7]} 17... Ng4 {[%clk 0:02:27.7]} 18.
Rhf1 {[%clk 0:02:05.7]} 18... Rb8+ {[%clk 0:01:54.9]} 19. Kc2 {[%clk 0:02:05]}
19... c5 {[%clk 0:01:54.3]} 20. f3 {[%clk 0:01:49.9]} 20... Nh6 {[%clk
0:01:35.6]} 21. Bxh6 {[%clk 0:01:31.6]} 21... Rxh6 {[%clk 0:01:29.5]} 22. Ne4
{[%clk 0:01:28.3]} 22... cxd4 {[%clk 0:01:27.7]} 23. exd4 {[%clk 0:01:27.9]}
23... Rh8 {[%clk 0:01:26.7]} 24. Nc3 {[%clk 0:01:15.4]} 24... Kd7 {[%clk
0:01:26]} 25. c5 {[%clk 0:00:57]} 25... Rhc8 {[%clk 0:01:25]} 26. Rb1 {[%clk
0:00:54.8]} 26... Rxb1 {[%clk 0:01:12.9]} 27. Rxb1 {[%clk 0:00:53.7]} 27... dxc5
{[%clk 0:01:12.7]} 28. d5 {[%clk 0:00:43.5]} 28... Bxc3 {[%clk 0:00:54.5]} 29.
Kxc3 {[%clk 0:00:43.5]} 29... Rc7 {[%clk 0:00:55.1]} 30. Kc4 {[%clk 0:00:43.5]}
30... Kd6 {[%clk 0:00:55.5]} 31. Rb8 {[%clk 0:00:42.4]} 31... Ke5 {[%clk
0:00:54.9]} 32. Rf8 {[%clk 0:00:33]} 32... f6 {[%clk 0:00:39.9]} 33. Rg8 {[%clk
0:00:31.6]} 33... Kf5 {[%clk 0:00:26.8]} 34. Rg7 {[%clk 0:00:31.8]} 34... Rd7
{[%clk 0:00:13.4]} 35. Kxc5 {[%clk 0:00:31.5]} 35... Rc7+ {[%clk 0:00:10]} 36.
Kd4 {[%clk 0:00:30.5]} 36... e5+ {[%clk 0:00:09.6]} 37. dxe6 {[%clk 0:00:23]}
37... Rxg7 {[%clk 0:00:09.2]} 0-1

[Event "Late-Titled-Tuesday-Blitz-March-26-2024"]
[Site "Chess.com"]
[Date "2024.03.26"]
[Round "9"]
[White "ckgchess"]
[Black "Polish_fighter3000"]
[Result "1-0"]
[WhiteElo "2957"]
[BlackElo "3117"]
[TimeControl "180+1"]
[EndTime "15:44:30 PDT"]
[Termination "ckgchess won by checkmate"]

1. e4 {[%clk 0:03:00.9]} 1... c5 {[%clk 0:02:59.4]} 2. c3 {[%clk 0:03:01]} 2...
Nf6 {[%clk 0:02:58.1]} 3. e5 {[%clk 0:03:01.1]} 3... Nd5 {[%clk 0:02:58.4]} 4.
d4 {[%clk 0:03:02]} 4... cxd4 {[%clk 0:02:57.3]} 5. Bc4 {[%clk 0:03:02.5]} 5...
Nb6 {[%clk 0:02:44.2]} 6. Bb3 {[%clk 0:03:03]} 6... d5 {[%clk 0:02:40.9]} 7.
cxd4 {[%clk 0:03:03.1]} 7... Nc6 {[%clk 0:02:39.3]} 8. Bc2 {[%clk 0:03:03.3]}
8... Nb4 {[%clk 0:02:36.4]} 9. Nc3 {[%clk 0:03:03.7]} 9... Bg4 {[%clk 0:02:20]}
10. Nge2 {[%clk 0:02:53.4]} 10... Nxc2+ {[%clk 0:02:17.6]} 11. Qxc2 {[%clk
0:02:54.3]} 11... Bxe2 {[%clk 0:02:05]} 12. Qxe2 {[%clk 0:02:55.2]} 12... e6
{[%clk 0:02:05.4]} 13. O-O {[%clk 0:02:52.1]} 13... Qd7 {[%clk 0:02:03.1]} 14.
a4 {[%clk 0:02:31.6]} 14... a6 {[%clk 0:01:44.1]} 15. a5 {[%clk 0:02:29.4]}
15... Nc8 {[%clk 0:01:44.3]} 16. Qg4 {[%clk 0:02:25.7]} 16... h5 {[%clk
0:01:41.7]} 17. Qg3 {[%clk 0:02:26.1]} 17... Ne7 {[%clk 0:01:41]} 18. Bg5 {[%clk
0:02:06.3]} 18... Nf5 {[%clk 0:01:40.4]} 19. Qf4 {[%clk 0:02:07.1]} 19... Rc8
{[%clk 0:01:33.1]} 20. Na4 {[%clk 0:02:00.1]} 20... Qb5 {[%clk 0:01:32.5]} 21.
Rfc1 {[%clk 0:01:52.3]} 21... Rc6 {[%clk 0:01:27.4]} 22. h3 {[%clk 0:01:20.3]}
22... Bb4 {[%clk 0:01:25.6]} 23. Nc3 {[%clk 0:01:03]} 23... Bxc3 {[%clk
0:01:03.5]} 24. bxc3 {[%clk 0:01:03.9]} 24... Qd3 {[%clk 0:01:03.6]} 25. Rab1
{[%clk 0:00:40.6]} 25... Rxc3 {[%clk 0:00:59.9]} 26. Rxc3 {[%clk 0:00:36]} 26...
Qxc3 {[%clk 0:01:00.8]} 27. Rc1 {[%clk 0:00:36.4]} 27... Qxa5 {[%clk 0:00:32.8]}
28. Rc8+ {[%clk 0:00:36]} 28... Kd7 {[%clk 0:00:33.3]} 29. Rxh8 {[%clk
0:00:36.9]} 29... Qe1+ {[%clk 0:00:31.7]} 30. Kh2 {[%clk 0:00:37.1]} 30... Qd1
{[%clk 0:00:26.2]} 31. Rf8 {[%clk 0:00:28.3]} 31... Kc6 {[%clk 0:00:22]} 32.
Rxf7 {[%clk 0:00:25.2]} 32... Nxd4 {[%clk 0:00:19.1]} 33. Bd8 {[%clk 0:00:19.3]}
33... Ne2 {[%clk 0:00:11]} 34. Rc7+ {[%clk 0:00:19.2]} 34... Kb5 {[%clk
0:00:09.4]} 35. Rxb7+ {[%clk 0:00:19.6]} 35... Kc6 {[%clk 0:00:08.7]} 36. Rb6+
{[%clk 0:00:16.8]} 36... Kc5 {[%clk 0:00:03.7]} 37. Qb4# {[%clk 0:00:16.9]} 1-0

[Event "Late-Titled-Tuesday-Blitz-March-26-2024"]
[Site "Chess.com"]
[Date "2024.03.26"]
[Round "9"]
[White "lluiss"]
[Black "1g60-1"]
[Result "0-1"]
[WhiteElo "2230"]
[BlackElo "2396"]
[TimeControl "180+1"]
[EndTime "15:44:30 PDT"]
[Termination "1g60-1 won by checkmate"]

1. Nf3 {[%clk 0:03:00.9]} 1... f5 {[%clk 0:02:59.3]} 2. c4 {[%clk 0:02:58.9]}
2... Nf6 {[%clk 0:02:59.3]} 3. g3 {[%clk 0:02:59]} 3... e6 {[%clk 0:02:59.6]} 4.
Bg2 {[%clk 0:02:58.9]} 4... Be7 {[%clk 0:03:00.3]} 5. O-O {[%clk 0:02:58.7]}
5... O-O {[%clk 0:03:00.5]} 6. b3 {[%clk 0:02:58.6]} 6... a5 {[%clk 0:02:59.3]}
7. Nc3 {[%clk 0:02:53.1]} 7... d6 {[%clk 0:02:55.7]} 8. Bb2 {[%clk 0:02:52.1]}
8... e5 {[%clk 0:02:48.1]} 9. d3 {[%clk 0:02:50.8]} 9... Qe8 {[%clk 0:02:40.7]}
10. Nd5 {[%clk 0:02:50]} 10... Bd8 {[%clk 0:02:36.5]} 11. Nxf6+ {[%clk 0:02:42]}
11... Rxf6 {[%clk 0:02:29.5]} 12. c5 {[%clk 0:02:40.5]} 12... Qh5 {[%clk
0:02:26.8]} 13. cxd6 {[%clk 0:02:38]} 13... cxd6 {[%clk 0:02:26.4]} 14. Qc1
{[%clk 0:01:50]} 14... Nc6 {[%clk 0:02:19]} 15. Qg5 {[%clk 0:01:48.2]} 15... Qf7
{[%clk 0:02:10.2]} 16. Rfc1 {[%clk 0:01:17.1]} 16... f4 {[%clk 0:02:00.9]} 17.
d4 {[%clk 0:00:22.8]} 17... Rh6 {[%clk 0:01:52.4]} 18. Qxh6 {[%clk 0:00:16.8]}
18... gxh6 {[%clk 0:01:51.8]} 19. dxe5 {[%clk 0:00:17.7]} 19... dxe5 {[%clk
0:01:40.9]} 20. Nxe5 {[%clk 0:00:17.8]} 20... Nxe5 {[%clk 0:01:39.7]} 21. Bxe5
{[%clk 0:00:18.7]} 21... fxg3 {[%clk 0:01:26]} 22. hxg3 {[%clk 0:00:18.3]} 22...
Bb6 {[%clk 0:01:22.8]} 23. e3 {[%clk 0:00:17.3]} 23... Bg4 {[%clk 0:01:17.1]}
24. Rc3 {[%clk 0:00:12.7]} 24... Bf3 {[%clk 0:01:12.2]} 25. Bxf3 {[%clk
0:00:12.3]} 25... Qxf3 {[%clk 0:01:11.7]} 26. Rac1 {[%clk 0:00:13.2]} 26... Rf8
{[%clk 0:01:07.6]} 27. Bf4 {[%clk 0:00:13]} 27... h5 {[%clk 0:00:53.9]} 28. R1c2
{[%clk 0:00:13]} 28... h4 {[%clk 0:00:52.8]} 29. gxh4 {[%clk 0:00:12.2]} 29...
Rxf4 {[%clk 0:00:40.2]} 30. exf4 {[%clk 0:00:11.4]} 30... Bxf2+ {[%clk
0:00:39.4]} 31. Kf1 {[%clk 0:00:09]} 31... Be3+ {[%clk 0:00:30.8]} 32. Ke1
{[%clk 0:00:08.1]} 32... Qe4 {[%clk 0:00:20.1]} 33. Rc8+ {[%clk 0:00:05.6]}
33... Kg7 {[%clk 0:00:20.4]} 34. R2c7+ {[%clk 0:00:05.8]} 34... Kh6 {[%clk
0:00:19.2]} 35. Kd1 {[%clk 0:00:05.9]} 35... Bxf4 {[%clk 0:00:16.9]} 36. Rc4
{[%clk 0:00:04]} 36... Qd3+ {[%clk 0:00:15.8]} 37. Ke1 {[%clk 0:00:03.7]} 37...
Bg3# {[%clk 0:00:16.1]} 0-1

[Event "Late-Titled-Tuesday-Blitz-March-26-2024"]
[Site "Chess.com"]
[Date "2024.03.26"]
[Round "9"]
[White "manitodeplomo"]
[Black "TanitoluwaAps116"]
[Result "0-1"]
[WhiteElo "2645"]
[BlackElo "2825"]
[TimeControl "180+1"]
[EndTime "15:44:31 PDT"]
[Termination "TanitoluwaAps116 won on time"]

1. d4 {[%clk 0:03:00.9]} 1... Nf6 {[%clk 0:02:59.1]} 2. c4 {[%clk 0:03:00.3]}
2... e6 {[%clk 0:02:59.5]} 3. Nf3 {[%clk 0:02:59.1]} 3... b6 {[%clk 0:02:59.8]}
4. g3 {[%clk 0:02:58.7]} 4... Ba6 {[%clk 0:02:59.7]} 5. Qc2 {[%clk 0:02:58.1]}
5... Bb7 {[%clk 0:02:54.1]} 6. Bg2 {[%clk 0:02:57.3]} 6... c5 {[%clk 0:02:46]}
7. d5 {[%clk 0:02:56.8]} 7... exd5 {[%clk 0:02:46.9]} 8. cxd5 {[%clk 0:02:57.6]}
8... Nxd5 {[%clk 0:02:47.8]} 9. O-O {[%clk 0:02:57.8]} 9... Be7 {[%clk
0:02:47.7]} 10. Ne5 {[%clk 0:02:56.9]} 10... Qc7 {[%clk 0:02:39.6]} 11. Nxf7
{[%clk 0:02:51.1]} 11... O-O {[%clk 0:02:15.6]} 12. Ng5 {[%clk 0:02:28.3]} 12...
Bxg5 {[%clk 0:02:15.3]} 13. Bxg5 {[%clk 0:02:29.2]} 13... Nb4 {[%clk 0:02:13.3]}
14. Qb3+ {[%clk 0:02:20.7]} 14... Rf7 {[%clk 0:01:58.8]} 15. Nc3 {[%clk
0:02:10.2]} 15... Bxg2 {[%clk 0:01:55.8]} 16. Kxg2 {[%clk 0:02:11.1]} 16... N8c6
{[%clk 0:01:51.3]} 17. Nb5 {[%clk 0:00:58.3]} 17... Qe5 {[%clk 0:01:32.8]} 18.
Bf4 {[%clk 0:00:46.5]} 18... Qe4+ {[%clk 0:01:32.1]} 19. Kg1 {[%clk 0:00:43.5]}
19... c4 {[%clk 0:00:44.7]} 20. Qd1 {[%clk 0:00:41]} 20... Rxf4 {[%clk
0:00:29.9]} 21. gxf4 {[%clk 0:00:41.9]} 21... Re8 {[%clk 0:00:27.5]} 22. Nd6
{[%clk 0:00:25]} 22... Qg6+ {[%clk 0:00:27.2]} 23. Kh1 {[%clk 0:00:24.9]} 23...
Rf8 {[%clk 0:00:23.7]} 24. a3 {[%clk 0:00:20.9]} 24... Nd3 {[%clk 0:00:06.1]}
25. exd3 {[%clk 0:00:14.1]} 25... Qxd6 {[%clk 0:00:06.2]} 26. dxc4 {[%clk
0:00:13.9]} 26... Qxf4 {[%clk 0:00:06.9]} 27. Qd5+ {[%clk 0:00:11.6]} 27... Kh8
{[%clk 0:00:06.8]} 28. Rae1 {[%clk 0:00:10.5]} 28... Nd4 {[%clk 0:00:05.5]} 29.
Re3 {[%clk 0:00:05.2]} 29... h6 {[%clk 0:00:04.3]} 30. Qe4 {[%clk 0:00:03.4]}
30... Qf6 {[%clk 0:00:04.1]} 0-1

[Event "Late-Titled-Tuesday-Blitz-March-26-2024"]
[Site "Chess.com"]
[Date "2024.03.26"]
[Round "9"]
[White "maximnovik"]
[Black "jinbojinbo"]
[Result "1-0"]
[WhiteElo "2592"]
[BlackElo "2634"]
[TimeControl "180+1"]
[EndTime "15:44:38 PDT"]
[Termination "maximnovik won by resignation"]

1. e4 {[%clk 0:03:00.9]} 1... e5 {[%clk 0:02:57.3]} 2. Nf3 {[%clk 0:03:00.7]}
2... Nc6 {[%clk 0:02:57.3]} 3. Bc4 {[%clk 0:03:01.2]} 3... Nf6 {[%clk
0:02:56.2]} 4. d3 {[%clk 0:03:01]} 4... Bc5 {[%clk 0:02:53.5]} 5. c3 {[%clk
0:03:00.4]} 5... d6 {[%clk 0:02:52]} 6. Nbd2 {[%clk 0:02:55.1]} 6... O-O {[%clk
0:02:51.2]} 7. O-O {[%clk 0:02:53.1]} 7... a6 {[%clk 0:02:50.5]} 8. Bb3 {[%clk
0:02:51.9]} 8... Ba7 {[%clk 0:02:50.1]} 9. Re1 {[%clk 0:02:45.7]} 9... Re8
{[%clk 0:02:48.5]} 10. h3 {[%clk 0:02:45.3]} 10... Ne7 {[%clk 0:02:44.4]} 11.
Nf1 {[%clk 0:02:45.1]} 11... Ng6 {[%clk 0:02:44.4]} 12. Ng3 {[%clk 0:02:45.8]}
12... h6 {[%clk 0:02:43.7]} 13. d4 {[%clk 0:02:45.5]} 13... Be6 {[%clk 0:02:40]}
14. Bc2 {[%clk 0:02:44]} 14... c6 {[%clk 0:02:34.4]} 15. Be3 {[%clk 0:02:43.8]}
15... Qc7 {[%clk 0:02:33.6]} 16. Qd2 {[%clk 0:02:43.8]} 16... Kh7 {[%clk
0:02:26.4]} 17. Rad1 {[%clk 0:02:23]} 17... Rad8 {[%clk 0:02:23.9]} 18. Qc1
{[%clk 0:02:20.3]} 18... b5 {[%clk 0:02:23.3]} 19. a3 {[%clk 0:02:18.1]} 19...
a5 {[%clk 0:02:22.3]} 20. Nf5 {[%clk 0:01:52.9]} 20... Bxf5 {[%clk 0:02:18.1]}
21. exf5 {[%clk 0:01:52.9]} 21... Nf8 {[%clk 0:02:18.2]} 22. dxe5 {[%clk
0:01:40]} 22... Bxe3 {[%clk 0:02:16.9]} 23. Qxe3 {[%clk 0:01:36.3]} 23... dxe5
{[%clk 0:02:13.1]} 24. Rxd8 {[%clk 0:01:31.6]} 24... Qxd8 {[%clk 0:02:12.3]} 25.
Nxe5 {[%clk 0:01:21.9]} 25... N8d7 {[%clk 0:02:05]} 26. f4 {[%clk 0:01:18.8]}
26... Qc7 {[%clk 0:02:01.5]} 27. Qg3 {[%clk 0:01:01]} 27... Kg8 {[%clk
0:01:48.7]} 28. Bb3 {[%clk 0:00:47.9]} 28... Re7 {[%clk 0:01:25.2]} 29. Ng4
{[%clk 0:00:19.1]} 29... Rxe1+ {[%clk 0:01:07.2]} 30. Qxe1 {[%clk 0:00:19.3]}
30... Qxf4 {[%clk 0:00:41.2]} 31. Qe7 {[%clk 0:00:17.4]} 31... Qc1+ {[%clk
0:00:40.3]} 32. Kh2 {[%clk 0:00:16.5]} 32... Qf4+ {[%clk 0:00:40.2]} 33. Kg1
{[%clk 0:00:14.3]} 33... Qxf5 {[%clk 0:00:34.7]} 34. Qxf7+ {[%clk 0:00:13.2]}
34... Kh7 {[%clk 0:00:34.4]} 35. Ne3 {[%clk 0:00:09.9]} 35... Qb1+ {[%clk
0:00:25.6]} 36. Kh2 {[%clk 0:00:09.1]} 36... Qxb2 {[%clk 0:00:19.9]} 37. Bc2+
{[%clk 0:00:09.2]} 37... Kh8 {[%clk 0:00:20.1]} 38. Nf5 {[%clk 0:00:09.3]} 1-0

[Event "Late-Titled-Tuesday-Blitz-March-26-2024"]
[Site "Chess.com"]
[Date "2024.03.26"]
[Round "9"]
[White "titomagno_64"]
[Black "thesupera12"]
[Result "0-1"]
[WhiteElo "2299"]
[BlackElo "2428"]
[TimeControl "180+1"]
[EndTime "15:44:38 PDT"]
[Termination "thesupera12 won on time"]

1. d4 {[%clk 0:02:58.5]} 1... e5 {[%clk 0:02:55.9]} 2. dxe5 {[%clk 0:02:55.6]}
2... Qe7 {[%clk 0:02:56.5]} 3. Nf3 {[%clk 0:02:54.4]} 3... Nc6 {[%clk
0:02:56.9]} 4. e4 {[%clk 0:02:52.7]} 4... Nxe5 {[%clk 0:02:56.5]} 5. Nc3 {[%clk
0:02:48.5]} 5... Nf6 {[%clk 0:02:53.7]} 6. Bg5 {[%clk 0:02:33.4]} 6... c6 {[%clk
0:02:43.7]} 7. Be2 {[%clk 0:02:21.2]} 7... h6 {[%clk 0:02:42.1]} 8. Bh4 {[%clk
0:02:12.8]} 8... Ng6 {[%clk 0:02:35.1]} 9. Bg3 {[%clk 0:02:03.8]} 9... Nxe4
{[%clk 0:02:30.2]} 10. Nxe4 {[%clk 0:02:03.5]} 10... Qxe4 {[%clk 0:02:31.1]} 11.
O-O {[%clk 0:02:03.5]} 11... Be7 {[%clk 0:02:28.5]} 12. Bd3 {[%clk 0:01:52.1]}
12... Qd5 {[%clk 0:02:27.8]} 13. Re1 {[%clk 0:01:43.4]} 13... Nf8 {[%clk
0:02:18.7]} 14. Re5 {[%clk 0:01:11.8]} 14... Qd6 {[%clk 0:02:12.8]} 15. Rg5
{[%clk 0:00:27.3]} 15... hxg5 {[%clk 0:02:07]} 16. Bxd6 {[%clk 0:00:27.1]} 16...
Bxd6 {[%clk 0:02:07.9]} 17. h3 {[%clk 0:00:20]} 17... Ne6 {[%clk 0:02:07.3]} 18.
Qd2 {[%clk 0:00:19.4]} 18... Bf4 {[%clk 0:02:06.8]} 19. Qc3 {[%clk 0:00:19.2]}
19... d5 {[%clk 0:02:04.8]} 20. Re1 {[%clk 0:00:18.3]} 20... O-O {[%clk
0:02:04.6]} 21. Bf5 {[%clk 0:00:17.6]} 21... g6 {[%clk 0:01:59.9]} 22. Bxe6
{[%clk 0:00:16.1]} 22... Bxe6 {[%clk 0:02:00.8]} 23. g3 {[%clk 0:00:16.7]} 23...
Bd6 {[%clk 0:01:48.9]} 24. Qf6 {[%clk 0:00:16.5]} 24... Rae8 {[%clk 0:01:49.8]}
25. Nxg5 {[%clk 0:00:14.8]} 25... Be7 {[%clk 0:01:46.4]} 26. Qf4 {[%clk
0:00:11.1]} 26... Bxg5 {[%clk 0:01:46.9]} 27. Qxg5 {[%clk 0:00:11.7]} 27... Bxh3
{[%clk 0:01:47.7]} 28. Rxe8 {[%clk 0:00:08.5]} 28... Rxe8 {[%clk 0:01:48.6]} 29.
Kh2 {[%clk 0:00:08.7]} 29... Bf5 {[%clk 0:01:48.1]} 30. c3 {[%clk 0:00:07.5]}
30... Bb1 {[%clk 0:01:48]} 31. Qd2 {[%clk 0:00:06.8]} 31... Bxa2 {[%clk
0:01:47.3]} 32. Kg2 {[%clk 0:00:04.2]} 32... Bb1 {[%clk 0:01:46.1]} 33. Qd4
{[%clk 0:00:04.4]} 33... b6 {[%clk 0:01:44.1]} 34. Qf4 {[%clk 0:00:04.3]} 34...
c5 {[%clk 0:01:39]} 35. Qc7 {[%clk 0:00:04.3]} 35... Re2 {[%clk 0:01:36.5]} 36.
Qxa7 {[%clk 0:00:03.8]} 36... Rxb2 {[%clk 0:01:36.6]} 37. Qa8+ {[%clk
0:00:02.8]} 37... Kg7 {[%clk 0:01:35.5]} 38. Qxd5 {[%clk 0:00:03.7]} 38... Re2
{[%clk 0:01:33.3]} 39. Qd7 {[%clk 0:00:03.6]} 39... Bf5 {[%clk 0:01:22.9]} 40.
Qd6 {[%clk 0:00:04]} 40... Re6 {[%clk 0:01:21.4]} 41. Qd8 {[%clk 0:00:04.4]}
41... b5 {[%clk 0:01:19.3]} 42. Qd2 {[%clk 0:00:04.8]} 42... Be4+ {[%clk
0:01:16.4]} 43. Kh2 {[%clk 0:00:04.1]} 43... Bc6 {[%clk 0:01:15.5]} 44. Qb2
{[%clk 0:00:04.3]} 44... Re1 {[%clk 0:01:04.2]} 45. c4+ {[%clk 0:00:04.3]} 45...
Kg8 {[%clk 0:01:04.4]} 46. g4 {[%clk 0:00:03.4]} 46... bxc4 {[%clk 0:01:00.5]}
47. Qb8+ {[%clk 0:00:03.1]} 47... Re8 {[%clk 0:00:59.9]} 48. Qc7 {[%clk
0:00:03]} 48... Bf3 {[%clk 0:00:56.9]} 49. Qxc5 {[%clk 0:00:02.4]} 49... Bxg4
{[%clk 0:00:56.6]} 50. Kg3 {[%clk 0:00:02.6]} 50... Be6 {[%clk 0:00:56.5]} 51.
Qd6 {[%clk 0:00:02.4]} 51... Rc8 {[%clk 0:00:56.8]} 52. Qe7 {[%clk 0:00:02.2]}
52... c3 {[%clk 0:00:57]} 53. Qg5 {[%clk 0:00:01.5]} 53... c2 {[%clk 0:00:57.2]}
54. Qc1 {[%clk 0:00:02.4]} 54... Bf5 {[%clk 0:00:56.7]} 55. Kf4 {[%clk
0:00:02.8]} 55... Rd8 {[%clk 0:00:55.7]} 56. Kg5 {[%clk 0:00:01.3]} 56... Rd1
{[%clk 0:00:55.2]} 57. Qa3 {[%clk 0:00:01.6]} 57... c1=Q+ {[%clk 0:00:55.4]} 0-1

[Event "Late-Titled-Tuesday-Blitz-March-26-2024"]
[Site "Chess.com"]
[Date "2024.03.26"]
[Round "9"]
[White "AntonovaNadezhda"]
[Black "AlejandroArias"]
[Result "0-1"]
[WhiteElo "2158"]
[BlackElo "2363"]
[TimeControl "180+1"]
[EndTime "15:44:40 PDT"]
[Termination "AlejandroArias won on time"]

1. Nf3 {[%clk 0:02:59.3]} 1... e6 {[%clk 0:02:57.2]} 2. b3 {[%clk 0:02:59.4]}
2... d5 {[%clk 0:02:56.3]} 3. Bb2 {[%clk 0:02:59.8]} 3... c5 {[%clk 0:02:56.6]}
4. e3 {[%clk 0:02:58.7]} 4... Nf6 {[%clk 0:02:53.7]} 5. g3 {[%clk 0:02:55.5]}
5... Be7 {[%clk 0:02:52.8]} 6. Bg2 {[%clk 0:02:56]} 6... O-O {[%clk 0:02:52.3]}
7. O-O {[%clk 0:02:56.6]} 7... Nc6 {[%clk 0:02:52.3]} 8. c4 {[%clk 0:02:57.2]}
8... d4 {[%clk 0:02:50.4]} 9. exd4 {[%clk 0:02:57.6]} 9... cxd4 {[%clk
0:02:51.3]} 10. Re1 {[%clk 0:02:57.9]} 10... Ne8 {[%clk 0:02:48.1]} 11. Ne5
{[%clk 0:02:55.7]} 11... Nxe5 {[%clk 0:02:44.9]} 12. Rxe5 {[%clk 0:02:54.7]}
12... f6 {[%clk 0:02:45.4]} 13. Re1 {[%clk 0:02:45]} 13... e5 {[%clk 0:02:43.2]}
14. d3 {[%clk 0:02:44.3]} 14... Nc7 {[%clk 0:02:37.1]} 15. Nd2 {[%clk
0:02:41.7]} 15... Kh8 {[%clk 0:02:29.4]} 16. a3 {[%clk 0:02:29]} 16... a5 {[%clk
0:02:28.6]} 17. Nf3 {[%clk 0:02:25.4]} 17... Na6 {[%clk 0:02:23]} 18. h3 {[%clk
0:02:13.2]} 18... Qc7 {[%clk 0:02:18.5]} 19. Qe2 {[%clk 0:02:04.9]} 19... Nc5
{[%clk 0:01:55.6]} 20. b4 {[%clk 0:01:44.7]} 20... axb4 {[%clk 0:01:37]} 21.
axb4 {[%clk 0:01:45.6]} 21... Na4 {[%clk 0:01:23.3]} 22. c5 {[%clk 0:01:34.8]}
22... Bd8 {[%clk 0:00:51.9]} 23. Nh4 {[%clk 0:01:13.7]} 23... Bd7 {[%clk
0:00:45.1]} 24. Bd5 {[%clk 0:01:11.3]} 24... Bc6 {[%clk 0:00:38.7]} 25. Bb3
{[%clk 0:01:09.7]} 25... g6 {[%clk 0:00:34.1]} 26. Qc2 {[%clk 0:00:48.2]} 26...
Qd7 {[%clk 0:00:31.5]} 27. Kh2 {[%clk 0:00:37.4]} 27... Bc7 {[%clk 0:00:30.5]}
28. Bc1 {[%clk 0:00:23.4]} 28... Kg7 {[%clk 0:00:28]} 29. Bd2 {[%clk 0:00:17.3]}
29... g5 {[%clk 0:00:22.1]} 30. Ng2 {[%clk 0:00:14.9]} 30... b5 {[%clk
0:00:20.4]} 31. h4 {[%clk 0:00:03.9]} 31... h6 {[%clk 0:00:16.7]} 32. Qc1 {[%clk
0:00:04.1]} 32... Qf5 {[%clk 0:00:14]} 33. Kg1 {[%clk 0:00:03.1]} 33... Qf3
{[%clk 0:00:12.6]} 0-1